{"text_format":"1","workbook":"xlsx","n_sheets":2,"sheets":["FORMULARIO","DATOS"],"not_rendered":{"charts":0,"images":2,"macros":1,"external_links":1,"defined_names":9,"comments":1,"pivot_tables":0},"unopened":[],"bounds":{"document_bytes":16777216,"sheet_cells":100000,"rows_first":2000,"rows_last":500,"rows_between":2000,"halvings":0,"cell_chars":16384,"cell_head_chars":4096},"cells_cut":0,"cells_raw":0,"read":"whole","date_system":"1900"}

{"sheet":"FORMULARIO","index":0,"n_rows":89,"n_cols":18,"rows_kept":89,"cut":false,"hidden":false,"merged":[[0,2,0,6],[1,2,1,6],[5,3,5,4],[14,3,14,5],[6,3,6,4],[17,3,17,5],[2,3,2,4],[3,3,3,4],[10,3,10,5],[11,3,11,5],[12,3,12,5],[7,3,7,5],[8,3,8,4],[9,3,9,4],[13,3,13,5],[15,3,15,4],[16,3,16,4],[4,3,4,5]]}
[null,null,"FORMULARIO INGRESO PQRS",null,null,null,null,null,null,null,null,null,"TIPO DE ENTIDAD O USUARIO",null,null,null,null,"DÍAS NO  LABORABLES 4o TRIMESTRE 2016"]
[null,null,"ORIENTACIONES",null,null,null,null,null,null,null,null,null,"CIUDADANO",null,null,null,null,"2016-10-01"]
[null,null,"FECHA DE REQUERIMIENTO\n(dd/mm/aaaa)",null,null,null,null,null,null,null,null,null,"ACADEMIA ",null,null,null,null,"2016-10-02"]
[null,null,"DOCUMENTO DE IDENTIFICACIÓN",null,null,null,null,null,null,null,null,null,"EMPRESA PRIVADA",null,null,null,null,"2016-10-08"]
[null,null,"NOMBRE Y APELLIDO",null,null,null,null,null,null,null,null,null,"ENTIDAD PÚBLICA",null,null,null,null,"2016-10-09"]
[null,null,"NOMBRE DE LA ENTIDAD QUE REPRESENTA",null,null,null,null,null,null,null,null,null,"EXTRANJERO",null,null,null,null,"2016-10-15"]
[null,null,"TIPO DE ENTIDAD O USUARIO",null,null,null,null,null,null,null,null,null,"FUNCIONARIO IDEAM",null,null,null,null,"2016-10-16"]
[null,null,"DIRECCIÓN O CORREO ELECTRÓNICO",null,null,null,null,null,null,null,null,null,"ONG/ORG",null,null,null,null,"2016-10-17"]
[null,null,"NÚMERO TELEFÓNICO DE CONTACTO",null,null,null,null,null,null,null,null,null,null,null,null,null,null,"2016-10-22"]
[null,null,"GÉNERO",null,null,null,null,null,null,null,null,null,"GÉNERO",null,null,null,null,"2016-10-23"]
[null,null,"MEDIO RECEPCIÓN",null,null,null,null,null,null,null,null,null,"FEMENINO",null,null,null,null,"2016-10-29"]
[null,null,"TIPO DE REQUERIMIENTO",null,null,null,null,null,null,null,null,null,"MASCULINO",null,null,null,null,"2016-10-30"]
[null,null,"PRODUCTO O SERVICIO AL CUAL SE REFIERE EL REQUERIMIENTO",null,null,null,null,null,null,null,null,null,"PERSONA JURÍDICA",null,null,null,null,"2016-11-05"]
[null,null,"DEPENDENCIA QUE DA RESPUESTA O A LA QUE SE DIRECCIONA",null,null,null,null,null,null,null,null,null,null,null,null,null,null,"2016-11-06"]
[null,null,"FUNCIONARIO RESPONSABLE",null,null,null,null,null,null,null,null,null,"DEPENDENCIA QUE DA RESPUESTA O LA QUE SE DIRECCIONA",null,null,null,null,"2016-11-07"]
[null,null,"FECHA DE RESOLUCIÓN DEL REQUERIMIENTO (dd/mm/aaaa)",{"$f":"TODAY()","v":"2025-07-23"},null,null,null,null,null,null,null,null,"AREA OPERATIVA No. 1",null,null,null,null,"2016-11-12"]
[null,null,"CANAL POR EL CUAL FUE RESUELTO EL REQUERIMIENTO",null,null,null,null,null,null,null,null,null,"AREA OPERATIVA No. 10",null,null,null,null,"2016-11-13"]
[null,null,"OBSERVACIONES",null,null,null,null,null,null,null,null,null,"AREA OPERATIVA No. 11",null,null,null,null,"2016-11-14"]
[null,null,null,null,null,null,null,null,null,null,null,null,"AREA OPERATIVA No. 2",null,null,null,null,"2016-11-19"]
[null,null,null,null,null,null,null,null,null,null,null,null,"AREA OPERATIVA No. 3",null,null,null,null,"2016-11-20"]
[null,null,null,null,null,null,null,null,null,null,null,null,"AREA OPERATIVA No. 4",null,null,null,null,"2016-11-26"]
[null,null,null,null,null,null,null,null,null,null,null,null,"AREA OPERATIVA No. 5",null,null,null,null,"2016-11-27"]
[null,null,null,null,null,null,null,null,null,null,null,null,"AREA OPERATIVA No. 6",null,null,null,null,"2016-12-03"]
[null,null,null,null,null,null,null,null,null,null,null,null,"AREA OPERATIVA No. 7",null,null,null,null,"2016-12-04"]
[null,null,null,null,null,null,null,null,null,null,null,null,"AREA OPERATIVA No. 8",null,null,null,null,"2016-12-08"]
[null,null,null,null,null,null,null,null,null,null,null,null,"AREA OPERATIVA No. 9",null,null,null,null,"2016-12-10"]
[null,null,null,null,null,null,null,null,null,null,null,null,"DIRECCIÓN GENERAL",null,null,null,null,"2016-12-11"]
[null,null,null,null,null,null,null,null,null,null,null,null,"GRUPO DE ADMINISTRACIÓN Y DESARROLLO DEL TALENTO HUMANO",null,null,null,null,"2016-12-17"]
[null,null,null,null,null,null,null,null,null,null,null,null,"GRUPO DE ATENCIÓN AL CIUDADANO",null,null,null,null,"2016-12-18"]
[null,null,null,null,null,null,null,null,null,null,null,null,"GRUPO DE COMUNICACIONES",null,null,null,null,"2016-12-24"]
[null,null,null,null,null,null,null,null,null,null,null,null,"GRUPO DE CONTABILIDAD",null,null,null,null,"2016-12-25"]
[null,null,null,null,null,null,null,null,null,null,null,null,"GRUPO DE CONTROL DISCIPLINARIO INTERNO",null,null,null,null,"2016-12-31"]
[null,null,null,null,null,null,null,null,null,null,null,null,"GRUPO DE GESTIÓN DOCUMENTAL Y CENTRO DE DOCUMENTACIÓN"]
[null,null,null,null,null,null,null,null,null,null,null,null,"GRUPO DE PRESUPUESTO"]
[null,null,null,null,null,null,null,null,null,null,null,null,"GRUPO DE SERVICIOS ADMINISTRATIVOS"]
[null,null,null,null,null,null,null,null,null,null,null,null,"GRUPO DE TESORERÍA"]
[null,null,null,null,null,null,null,null,null,null,null,null,"OFICINA ASESORA DE PLANEACIÓN"]
[null,null,null,null,null,null,null,null,null,null,null,null,"OFICINA ASESORA JURÍDICA"]
[null,null,null,null,null,null,null,null,null,null,null,null,"OFICINA DE CONTROL INTERNO"]
[null,null,null,null,null,null,null,null,null,null,null,null,"OFICINA DE INFORMÁTICA"]
[null,null,null,null,null,null,null,null,null,null,null,null,"OFICINA DEL SERVICIO DE PRONÓSTICOS Y ALERTAS"]
[null,null,null,null,null,null,null,null,null,null,null,null,"SECRETARÍA GENERAL"]
[null,null,null,null,null,null,null,null,null,null,null,null,"SUBDIRECCIÓN DE ECOSISTEMAS E INFORMACIÓN AMBIENTAL"]
[null,null,null,null,null,null,null,null,null,null,null,null,"SUBDIRECCIÓN DE ESTUDIOS AMBIENTALES"]
[null,null,null,null,null,null,null,null,null,null,null,null,"SUBDIRECCIÓN DE HIDROLOGÍA"]
[null,null,null,null,null,null,null,null,null,null,null,null,"SUBDIRECCIÓN DE METEOROLOGÍA"]
[]
[null,null,null,null,null,null,null,null,null,null,null,null,"TIPO DE REQUERIMIENTO","Término "]
[null,null,null,null,null,null,null,null,null,null,null,null,"ORIENTACION",0]
[]
[null,null,null,null,null,null,null,null,null,null,null,null,"PRODUCTO O SERVICIO"]
[null,null,null,null,null,null,null,null,null,null,null,null,"ACREDITACIÓN DE LABORATORIOS"]
[null,null,null,null,null,null,null,null,null,null,null,null,"ADMINISTRATIVA"]
[null,null,null,null,null,null,null,null,null,null,null,null,"AGUAS SUBTERRANEAS"]
[null,null,null,null,null,null,null,null,null,null,null,null,"ASESORÍAS Y CHARLAS"]
[null,null,null,null,null,null,null,null,null,null,null,null,"BOSQUES"]
[null,null,null,null,null,null,null,null,null,null,null,null,"CAMBIO CLIMÁTICO"]
[null,null,null,null,null,null,null,null,null,null,null,null,"CERTIFICACIONES DE TIEMPO Y CLIMA"]
[null,null,null,null,null,null,null,null,null,null,null,null,"CERTIFICACIONES HIDROLOGICAS"]
[null,null,null,null,null,null,null,null,null,null,null,null,"CLIMATOLOGÍA"]
[null,null,null,null,null,null,null,null,null,null,null,null,"ERA","EVALUACIÓN REGIONAL DEL AGUA"]
[null,null,null,null,null,null,null,null,null,null,null,null,"ESTUDIO NACIONAL DEL AGUA"]
[null,null,null,null,null,null,null,null,null,null,null,null,"INFORMES AMBIENTALES"]
[null,null,null,null,null,null,null,null,null,null,null,null,"JURIDICO"]
[null,null,null,null,null,null,null,null,null,null,null,null,"LABORATORIO DE CALIDAD AMBIENTAL"]
[null,null,null,null,null,null,null,null,null,null,null,null,"MEDIOS DE COMUNICACIÓN"]
[null,null,null,null,null,null,null,null,null,null,null,null,"METEOROLOGÍA AERONAÚTICA"]
[null,null,null,null,null,null,null,null,null,null,null,null,"MODELACIÓN HIDROLÓGICA"]
[null,null,null,null,null,null,null,null,null,null,null,null,"MODELAMIENTO METEOROLÓGICO"]
[null,null,null,null,null,null,null,null,null,null,null,null,"OPERACIÓN DE REDES"]
[null,null,null,null,null,null,null,null,null,null,null,null,"PRONÓSTICOS Y ALERTAS"]
[null,null,null,null,null,null,null,null,null,null,null,null,"REGISTROS AMBIENTALES"]
[null,null,null,null,null,null,null,null,null,null,null,null,"SEDIMENTOS"]
[null,null,null,null,null,null,null,null,null,null,null,null,"SIA","SISTEMA DE INFORMACIÓN AMBIENTAL"]
[null,null,null,null,null,null,null,null,null,null,null,null,"SIRH","SISTEMA DE INFORMACIÓN DEL RECURDO HÍDRICO"]
[null,null,null,null,null,null,null,null,null,null,null,null,"SOLICITUD DE INFORMACIÓN HIDROMETEOROLÓGICA"]
[null,null,null,null,null,null,null,null,null,null,null,null,"SUELOS Y TIERRAS"]
[null,null,null,null,null,null,null,null,null,null,null,null,"VISITAS ACADÉMICAS"]
[null,null,null,null,null,null,null,null,null,null,null,null,"WEB Y CORREO"]
[null,null,null,null,null,null,null,null,null,null,null,null,"ZONIFICACIÓN HIDROGRÁFICA"]
[]
[null,null,null,null,null,null,null,null,null,null,null,null,"MEDIO DE RECEPCIÓN","CANAL POR EL CUAL FUE RESUELTO EL REQUERIMIENTO"]
[null,null,null,null,null,null,null,null,null,null,null,null,"ATENCIÓN PRESENCIAL","PRESENCIAL"]
[null,null,null,null,null,null,null,null,null,null,null,null,"ATENCIÓN TELEFÓNICA","TELEFONICA"]
[null,null,null,null,null,null,null,null,null,null,null,null,"PORTAL PQRS","CORREO ELECTRÓNCIO"]
[]
[null,null,null,null,null,null,null,null,null,null,null,null,"¿REQUERIMIENTO FUE ESCALADO?"]
[null,null,null,null,null,null,null,null,null,null,null,null,"SI"]
[null,null,null,null,null,null,null,null,null,null,null,null,"NO"]

{"sheet":"DATOS","index":1,"n_rows":699,"n_cols":17,"rows_kept":699,"cut":false,"hidden":false,"merged":[[9,9,9,11],[9,12,9,15],[9,16,10,16],[0,2,3,14],[5,1,5,2],[5,3,5,6],[7,1,7,2],[7,3,7,6],[9,0,9,1],[9,2,9,8],[0,0,3,1],[0,15,0,16],[1,15,1,16],[2,15,2,16],[3,15,3,16],[40,2,40,3],[40,4,40,6],[37,2,37,3],[37,4,37,6],[38,2,38,3],[38,4,38,6]]}
[null,null,"REGISTRO ORDENADO PARA LA GESTIÓN DE ORIENTACIONES",null,null,null,null,null,null,null,null,null,null,null,null,"Código: M-SC-F010"]
[null,null,null,null,null,null,null,null,null,null,null,null,null,null,null,"Versión: 03"]
[null,null,null,null,null,null,null,null,null,null,null,null,null,null,null,"Fecha: 23/07/2025"]
[null,null,null,null,null,null,null,null,null,null,null,null,null,null,null,"Página: 1 de 1"]
[]
[]
[]
[]
[]
["DATOS DEL REQUERIMIENTO",null,"DATOS DE CONTACTO USUARIO",null,null,null,null,null,null,"POSTURA DE REQUERIMIENTO",null,null,null,null,null,null,"OBSERVACIONES"]
["No.","FECHA DE REQUERIMIENTO\n(dd/mm/aaaa)","DOCUMENTO DE IDENTIFICACIÓN","NOMBRE Y APELLIDO","NOMBRE DE LA ENTIDAD QUE REPRESENTA","TIPO DE ENTIDAD O USUARIO","DIRECCIÓN O CORREO ELECTRÓNICO","NÚMERO TELEFÓNICO DE CONTACTO","GÉNERO","MEDIO RECEPCIÓN","TIPO DE REQUERIMIENTO","PRODUCTO O SERVICIO AL CUAL SE REFIERE EL REQUERIMIENTO","DEPENDENCIA QUE DA RESPUESTA O A LA QUE SE DIRECCIONA","FUNCIONARIO RESPONSABLE","FECHA DE RESOLUCIÓN DEL REQUERIMIENTO\n(dd/mm/aaaa)","CANAL POR EL CUAL FUE RESUELTO EL REQUERIMIENTO"]
[{"$f":"IF(B12<>\"\",1,\"\")","v":""}]
[{"$f":"IF(B13<>\"\",A12+1,\"\")","v":""}]
[{"$f":"IF(B14<>\"\",A13+1,\"\")","v":""}]
[""]
[""]
[""]
[""]
[""]
[""]
[""]
[""]
[""]
[""]
[""]
[""]
[""]
[""]
[""]
[""]
[""]
[""]
[""]
[""]
[""]
[""]
[""]
[""]
[""]
[""]
[""]
[""]
[""]
[""]
[""]
[""]
[""]
[""]
[""]
[""]
[""]
[""]
[""]
[""]
[""]
[""]
[""]
[""]
[""]
[""]
[""]
[""]
[""]
[""]
[""]
[""]
[""]
[""]
[""]
[""]
[""]
[""]
[""]
[""]
[""]
[""]
[""]
[{"$f":"IF(B78<>\"\",A77+1,\"\")","v":""}]
[""]
[""]
[""]
[""]
[""]
[""]
[""]
[""]
[""]
[""]
[""]
[""]
[""]
[""]
[""]
[""]
[""]
[""]
[""]
[""]
[""]
[""]
[""]
[""]
[""]
[""]
[""]
[""]
[""]
[""]
[""]
[""]
[""]
[""]
[""]
[""]
[""]
[""]
[""]
[""]
[""]
[""]
[""]
[""]
[""]
[""]
[""]
[""]
[""]
[""]
[""]
[""]
[""]
[""]
[""]
[""]
[""]
[""]
[""]
[""]
[""]
[""]
[""]
[{"$f":"IF(B142<>\"\",A141+1,\"\")","v":""}]
[""]
[""]
[""]
[""]
[""]
[""]
[""]
[""]
[""]
[""]
[""]
[""]
[""]
[""]
[""]
[""]
[""]
[""]
[""]
[""]
[""]
[""]
[""]
[""]
[""]
[""]
[""]
[""]
[""]
[""]
[""]
[""]
[""]
[""]
[""]
[""]
[""]
[""]
[""]
[""]
[""]
[""]
[""]
[""]
[""]
[""]
[""]
[""]
[""]
[""]
[""]
[""]
[""]
[""]
[""]
[""]
[""]
[""]
[""]
[""]
[""]
[""]
[""]
[{"$f":"IF(B206<>\"\",A205+1,\"\")","v":""}]
[""]
[""]
[""]
[""]
[""]
[""]
[""]
[""]
[""]
[""]
[""]
[""]
[""]
[""]
[""]
[""]
[""]
[""]
[""]
[""]
[""]
[""]
[""]
[""]
[""]
[""]
[""]
[""]
[""]
[""]
[""]
[""]
[""]
[""]
[""]
[""]
[""]
[""]
[""]
[""]
[""]
[""]
[""]
[""]
[""]
[""]
[""]
[""]
[""]
[""]
[""]
[""]
[""]
[""]
[""]
[""]
[""]
[""]
[""]
[""]
[""]
[""]
[""]
[{"$f":"IF(B270<>\"\",A269+1,\"\")","v":""}]
[""]
[""]
[""]
[""]
[""]
[""]
[""]
[""]
[""]
[""]
[""]
[""]
[""]
[""]
[""]
[""]
[""]
[""]
[""]
[""]
[""]
[""]
[""]
[""]
[""]
[""]
[""]
[""]
[""]
[""]
[""]
[""]
[""]
[""]
[""]
[""]
[""]
[""]
[""]
[""]
[""]
[""]
[""]
[""]
[""]
[""]
[""]
[""]
[""]
[""]
[""]
[""]
[""]
[""]
[""]
[""]
[""]
[""]
[""]
[""]
[""]
[""]
[""]
[{"$f":"IF(B334<>\"\",A333+1,\"\")","v":""}]
[""]
[""]
[""]
[""]
[""]
[""]
[""]
[""]
[""]
[""]
[""]
[""]
[""]
[""]
[""]
[""]
[""]
[""]
[""]
[""]
[""]
[""]
[""]
[""]
[""]
[""]
[""]
[""]
[""]
[""]
[""]
[""]
[""]
[""]
[""]
[""]
[""]
[""]
[""]
[""]
[""]
[""]
[""]
[""]
[""]
[""]
[""]
[""]
[""]
[""]
[""]
[""]
[""]
[""]
[""]
[""]
[""]
[""]
[""]
[""]
[""]
[""]
[""]
[{"$f":"IF(B398<>\"\",A397+1,\"\")","v":""}]
[""]
[""]
[""]
[""]
[""]
[""]
[""]
[""]
[""]
[""]
[""]
[""]
[""]
[""]
[""]
[""]
[""]
[""]
[""]
[""]
[""]
[""]
[""]
[""]
[""]
[""]
[""]
[""]
[""]
[""]
[""]
[""]
[""]
[""]
[""]
[""]
[""]
[""]
[""]
[""]
[""]
[""]
[""]
[""]
[""]
[""]
[""]
[""]
[""]
[""]
[""]
[""]
[""]
[""]
[""]
[""]
[""]
[""]
[""]
[""]
[""]
[""]
[""]
[{"$f":"IF(B462<>\"\",A461+1,\"\")","v":""}]
[""]
[""]
[""]
[""]
[""]
[""]
[""]
[""]
[""]
[""]
[""]
[""]
[""]
[""]
[""]
[""]
[""]
[""]
[""]
[""]
[""]
[""]
[""]
[""]
[""]
[""]
[""]
[""]
[""]
[""]
[""]
[""]
[""]
[""]
[""]
[""]
[""]
[""]
[""]
[""]
[""]
[""]
[""]
[""]
[""]
[""]
[""]
[""]
[""]
[""]
[""]
[""]
[""]
[""]
[""]
[""]
[""]
[""]
[""]
[""]
[""]
[""]
[""]
[{"$f":"IF(B526<>\"\",A525+1,\"\")","v":""}]
[""]
[""]
[""]
[""]
[""]
[""]
[""]
[""]
[""]
[""]
[""]
[""]
[""]
[""]
[""]
[""]
[""]
[""]
[""]
[""]
[""]
[""]
[""]
[""]
[""]
[""]
[""]
[""]
[""]
[""]
[""]
[""]
[""]
[""]
[""]
[""]
[""]
[""]
[""]
[""]
[""]
[""]
[""]
[""]
[""]
[""]
[""]
[""]
[""]
[""]
[""]
[""]
[""]
[""]
[""]
[""]
[""]
[""]
[""]
[""]
[""]
[""]
[""]
[{"$f":"IF(B590<>\"\",A589+1,\"\")","v":""}]
[""]
[""]
[""]
[""]
[""]
[""]
[""]
[""]
[""]
[""]
[""]
[""]
[""]
[""]
[""]
[""]
[""]
[""]
[""]
[""]
[""]
[""]
[""]
[""]
[""]
[""]
[""]
[""]
[""]
[""]
[""]
[""]
[""]
[""]
[""]
[""]
[""]
[""]
[""]
[""]
[""]
[""]
[""]
[""]
[""]
[""]
[""]
[""]
[""]
[""]
[""]
[""]
[""]
[""]
[""]
[""]
[""]
[""]
[""]
[""]
[""]
[""]
[""]
[{"$f":"IF(B654<>\"\",A653+1,\"\")","v":""}]
[""]
[""]
[""]
[""]
[""]
[""]
[""]
[""]
[""]
[""]
[""]
[""]
[""]
[""]
[""]
[""]
[""]
[""]
[""]
[""]
[""]
[""]
[""]
[""]
[""]
[""]
[""]
[""]
[""]
[""]
[""]
[""]
[""]
[""]
[""]
[""]
[""]
[""]
[""]
[""]
[""]
[""]
[""]
[""]
[""]